bitfinex/quotes_ETHUSD_20260113
["timestamp","ask_amount","ask_price","bid_price","bid_amount"]
[1768301286239,0.001,3130.8,3130.2,0.93670527]
[1768301286633,3.19510356,3130.8,3130.2,0.93670527]
[1768301287641,0.001,3130.8,3130.2,1.35877423]
[1768301287844,0.001,3130.8,3130.3,0.93470527]
[1768301289827,0.001,3130.8,3130.4,0.93470527]
[1768301294118,0.001,3130.8,3130.2,1.35877423]
[1768301296068,0.001,3130.8,3130.5,0.94083972]
[1768301296676,0.001,3130.8,3130.6,1.36314535]
[1768301296984,0.001,3130.8,3130.7,0.93883972]
[1768301297636,0.001,3130.8,3130.5,0.09111096]
[1768301297837,0.001,3130.8,3130.5,1.02995068]
[1768301300373,0.001,3130.8,3130.5,1.06189445]
[1768301300544,0.001,3130.8,3130.5,4.25624141]
[1768301300743,0.001,3131.1,3130.7,0.93883972]
[1768301300942,0.001,3131.1,3130.6,0.45072414]
[1768301301474,0.001,3131.1,3130.6,3.64494468]
[1768301301769,0.001,3131.1,3130.7,0.08911096]
[1768301305380,0.001,3131.1,3130.7,1.02795068]
[1768301305547,0.001,3131.1,3130.8,0.39565045]
[1768301306469,0.001,3131.1,3130.9,0.93883972]
[1768301306881,0.001,3131.1,3130.9,1.02795068]
[1768301308186,0.0008,3131.6,3130.9,1.27895068]
[1768301308383,0.0008,3131.6,3131.1,3.19376576]
[1768301308579,0.0008,3131.6,3131.1,4.13260548]
[1768301309287,0.0008,3131.6,3131.1,0.93883972]
[1768301310591,0.0008,3131.6,3131.2,0.93883972]
[1768301312266,0.0008,3131.6,3131.1,3.28285302]
[1768301312591,0.0008,3131.6,3131.2,0.42216927]
[1768301312798,0.0008,3131.6,3131.2,4.55466215]
[1768301313458,0.0008,3131.6,3131.2,1.36100899]
[1768301313671,0.0008,3131.6,3131.2,0.42216927]
[1768301315318,0.0008,3131.6,3131.2,3.61582155]
[1768301315486,0.0008,3131.6,3131.3,0.39559325]
[1768301317485,0.0008,3131.6,3131.2,3.19358694]
[1768301321413,0.001,3131.3,3131.2,3.19358694]
[1768301321615,0.0008,3131.6,3131.2,3.19358694]
[1768301322513,0.0008,3131.6,3131.3,0.9961604]
[1768301322712,0.0008,3131.6,3131.3,1.08527136]
[1768301323018,0.0008,3131.6,3131.4,0.9961604]
[1768301325019,0.0008,3131.6,3131.4,4.18956652]
[1768301325220,0.0008,3131.6,3131.4,0.9961604]
[1768301325733,0.0008,3131.6,3131.5,0.9961604]
[1768301330223,0.0008,3131.6,3131.3,4.52982478]
[1768301330400,0.0008,3131.6,3131.4,0.45298248]
[1768301331724,0.0008,3131.6,3131.4,3.64643013]
[1768301331928,0.0008,3131.6,3131.4,0.45298248]
[1768301333891,0.0008,3131.6,3131.5,0.08911096]
[1768301335929,0.00081001,3132.0,3131.7,0.08911096]
[1768301336539,0.979397,3132.0,3131.7,0.08911096]
[1768301336722,0.00081001,3132.0,3131.7,0.08911096]
[1768301338514,0.00081001,3132.0,3131.8,0.08911096]
[1768301341955,0.979397,3132.0,3131.5,0.08911096]
[1768301342107,0.979397,3132.0,3131.3,0.08911096]
[1768301342454,0.97858699,3131.8,3131.4,0.251]
[1768301342676,4.17164428,3131.8,3131.3,0.08911096]
[1768301342964,0.97858699,3131.7,3131.3,0.08911096]
[1768301343844,0.97858699,3131.7,3131.3,3.64493536]
[1768301344368,0.97858699,3131.7,3131.3,0.45139873]
[1768301345255,0.97858699,3131.7,3130.2,0.98336484]
[1768301345572,0.92896102,3131.0,3130.3,0.08911096]
[1768301345736,0.92896102,3131.0,3130.2,0.002]
[1768301346271,0.92896102,3131.0,3130.2,3.19667721]
[1768301346574,0.92896102,3131.0,3130.3,0.08911096]
[1768301347361,4.12292171,3131.0,3130.3,0.08911096]
[1768301348444,3.19396069,3131.0,3130.5,0.98336484]
[1768301348645,3.19381339,3131.1,3130.6,0.08911096]
[1768301349349,6.38712354,3131.3,3130.6,0.08911096]
[1768301349558,7.118832,3131.3,3130.6,0.08911096]
[1768301350448,7.118832,3131.3,3130.7,1.01330657]
[1768301350449,0.73170846,3131.3,3130.7,1.01330657]
[1768301350652,4.12344228,3131.4,3130.8,0.08911096]
[1768301350853,0.92896102,3131.3,3130.8,0.08911096]
[1768301351445,0.001,3131.4,3130.8,0.08911096]
[1768301351774,0.92996102,3131.4,3130.8,0.08911096]
[1768301351969,0.92896102,3131.3,3130.8,0.08911096]
[1768301354380,4.12256207,3131.3,3130.8,0.08911096]
[1768301356284,0.98729856,3131.2,3130.6,0.34011096]
[1768301356577,4.18101469,3131.2,3130.6,0.34011096]
[1768301357482,4.18101469,3131.2,3130.8,0.002]
[1768301357660,4.18101469,3131.2,3130.6,0.34011096]
[1768301357860,0.98729856,3131.1,3130.6,0.34011096]
[1768301358450,3.19371613,3131.2,3130.6,0.34011096]
[1768301358782,4.18101469,3131.2,3130.6,0.34011096]
[1768301360386,3.19386777,3131.0,3130.6,0.08911096]
[1768301360585,4.18110681,3131.1,3130.6,0.08911096]
[1768301361284,13.53292902,3131.1,3130.6,0.08911096]
[1768301361450,0.98729856,3131.0,3130.5,0.002]
[1768301362751,0.98729856,3130.8,3130.5,0.002]
[1768301364356,3.1939116,3131.0,3130.5,0.002]
[1768301365385,3.1939116,3131.0,3130.5,0.97411306]
[1768301365578,3.1939116,3131.0,3130.6,1.06122402]
[1768301366169,3.1939116,3131.0,3130.6,0.08911096]
[1768301367802,6.3878232,3131.0,3130.6,0.08911096]
[1768301368304,3.1939116,3131.0,3130.6,0.08911096]
[1768301368602,3.1939116,3131.0,3130.5,0.002]
[1768301369298,3.1939116,3131.0,3130.8,0.002]
[1768301372572,3.19381586,3131.1,3130.8,0.002]
[1768301372901,4.43279547,3131.4,3130.8,0.002]
[1768301373084,3.19450838,3131.4,3130.9,0.08911096]
[1768301373278,3.19450838,3131.4,3130.9,0.08311097]
[1768301374174,6.38801676,3131.4,3130.9,0.08311097]
[1768301374769,6.38801676,3131.4,3130.9,1.07961917]
[1768301374770,0.001,3131.4,3130.9,1.07961917]
[1768301377304,0.03287774,3131.4,3130.9,1.07961917]
[1768301379207,3.19356177,3131.3,3130.9,1.07961917]
[1768301379809,0.001,3131.4,3130.9,1.07961917]
[1768301380303,0.001,3131.4,3131.1,1.08561916]
[1768301380807,3.19446691,3131.4,3131.1,0.08911096]
[1768301381322,0.001,3131.4,3131.1,0.08911096]
[1768301389799,0.001,3131.4,3131.1,1.08561916]
[1768301393827,0.001,3131.4,3131.1,0.9965082]
[1768301407131,0.001,3131.4,3130.9,4.25702639]
[1768301407335,0.001,3131.4,3131.1,0.08911096]
[1768301408056,0.001,3131.4,3131.1,1.06909507]
[1768301412757,0.001,3131.4,3131.3,0.08911096]
[1768301413324,0.00081001,3132.0,3131.4,0.97998411]
[1768301413554,0.94541204,3131.9,3131.5,0.08911096]
[1768301414459,0.00081001,3132.0,3131.5,0.08911096]
[1768301416542,0.00081001,3132.0,3131.4,0.97998411]
[1768301416729,0.001,3131.7,3131.4,0.97998411]
[1768301418259,0.001,3131.7,3131.3,3.28266387]
[1768301418434,0.001,3131.7,3131.3,0.08911096]
[1768301420666,0.001,3131.7,3131.3,1.07328502]
[1768301424048,0.001,3131.7,3131.3,4.26684502]
[1768301424756,0.001,3131.7,3131.3,1.07328502]
[1768301428276,0.001,3131.4,3131.3,1.07328502]
[1768301428448,0.001,3131.7,3131.3,1.07328502]
[1768301429983,0.001,3131.7,3131.3,0.08911096]
[1768301434352,0.001,3131.7,3131.3,4.26682255]
[1768301435277,0.001,3131.7,3131.3,1.07328502]
[1768301435651,0.001,3131.7,3131.3,4.26682535]
[1768301435872,0.001,3131.7,3131.3,1.07328502]
[1768301437266,0.001,3131.7,3131.3,4.2668299]
[1768301437563,0.001,3131.7,3131.5,0.08911096]
[1768301441391,0.29803093,3131.6,3131.5,0.08911096]
[1768301441598,0.001,3131.7,3131.5,0.08911096]
[1768301442180,0.001,3131.7,3131.3,1.44688502]
[1768301443397,0.001,3131.7,3131.3,0.46271096]
[1768301447901,0.001,3131.7,3131.3,1.41890616]
[1768301452112,0.001,3131.4,3131.3,1.41890616]
[1768301452312,0.001,3131.7,3131.3,1.41890616]
[1768301453615,0.2982797,3131.6,3131.3,1.41890616]
[1768301453779,3.19294996,3131.9,3131.5,0.08911096]
[1768301454514,0.90804722,3131.8,3131.5,0.08911096]
[1768301456022,0.90804722,3131.7,3131.5,0.08911096]
[1768301456197,3.19366135,3132.0,3131.5,0.08911096]
[1768301456376,0.38479519,3131.9,3131.5,0.08911096]
[1768301457087,0.38479519,3131.8,3131.5,0.08911096]
[1768301458230,3.19300556,3131.9,3131.5,0.08911096]
[1768301459897,3.19371341,3132.0,3131.5,0.08911096]
[1768301460177,3.19371341,3132.0,3131.5,1.04530616]
[1768301460830,0.00081001,3132.0,3131.5,1.04530616]
[1768301463726,0.001,3131.7,3131.5,1.04530616]
[1768301467215,0.001,3132.3,3131.5,1.04530616]
[1768301467216,0.001,3132.7,3132.3,0.94989464]
[1768301467419,3.19186962,3133.0,3132.4,1.20089464]
[1768301467628,0.38579519,3133.2,3132.5,0.94989464]
[1768301467629,3.19181611,3133.1,3132.5,0.94989464]
[1768301468300,3.19187078,3133.0,3132.5,0.94989464]
[1768301469620,3.19177259,3133.1,3132.5,0.94989464]
[1768301472705,0.70528085,3133.1,3132.5,3.19233373]
[1768301473106,0.70528085,3133.1,3132.4,3.44339521]
[1768301473301,0.70528085,3133.1,3132.5,3.19232628]
[1768301474251,3.19163938,3133.2,3132.5,4.14222092]
[1768301474550,3.19163938,3133.2,3132.6,0.94989464]
[1768301474702,3.19176688,3133.1,3132.6,0.94989464]
[1768301474905,3.19166887,3133.2,3132.6,0.94989464]
[1768301475824,6.3822807,3133.7,3132.6,0.94989464]
[1768301476022,4.89338821,3133.6,3132.6,0.94989464]
[1768301476529,4.89338821,3133.6,3132.7,0.91432843]
[1768301476731,0.70528085,3133.5,3132.5,3.19228897]
[1768301478545,0.70528085,3133.3,3132.5,3.19228897]
[1768301478742,0.70528085,3133.3,3132.5,4.1066174]
[1768301478965,0.70528085,3133.3,3132.6,4.89338821]
[1768301479457,0.70528085,3133.3,3132.5,4.1066174]
[1768301479754,11.27623111,3133.4,3132.7,0.91432843]
[1768301479919,12.79351171,3133.4,3132.7,0.91432843]
[1768301482246,13.49879256,3133.4,3132.6,0.251]
[1768301482449,0.70528085,3133.3,3132.6,0.251]
[1768301483151,3.89690602,3133.2,3132.6,0.251]
[1768301484663,0.70528085,3133.2,3132.6,3.44322151]
[1768301484957,3.89681509,3133.3,3132.6,8.33660972]
[1768301485257,3.89681509,3133.3,3132.6,4.35754994]
[1768301486746,3.19153424,3133.3,3132.7,0.91432843]
[1768301486943,3.89665547,3133.5,3132.7,5.80771664]
[1768301487145,7.08803009,3133.5,3132.7,0.91432843]
[1768301487322,7.08803009,3133.5,3132.7,4.1064437]
[1768301487523,3.89665547,3133.5,3132.7,4.1064437]
[1768301487720,0.001,3133.0,3132.7,4.1064437]
[1768301489527,3.89670851,3133.4,3132.7,4.1064437]
[1768301490229,3.19142766,3133.4,3132.8,0.91432843]
[1768301491152,5.59866906,3133.3,3132.3,0.08911096]
[1768301491344,3.89694722,3133.2,3132.5,3.1923286]
[1768301491551,5.59866906,3133.1,3132.6,0.251]
[1768301491866,0.70528085,3133.0,3132.6,0.251]
[1768301494435,3.89711925,3133.0,3132.6,0.251]
[1768301495038,0.70528085,3133.0,3132.6,0.251]
[1768301495870,3.19176517,3133.1,3132.6,0.251]
[1768301496878,3.89691231,3133.2,3132.6,0.251]
[1768301497578,3.89691231,3133.2,3132.5,3.19233711]
[1768301497776,3.89691231,3133.2,3132.6,0.251]
[1768301499340,3.19163146,3133.2,3132.6,0.251]
[1768301499642,3.19163146,3133.2,3132.9,0.002]
[1768301500278,3.19152331,3133.3,3132.9,0.002]
[1768301500477,6.38306008,3133.3,3132.9,0.002]
[1768301501072,7.08834093,3133.3,3132.9,0.002]
[1768301504067,4.89338821,3133.2,3132.9,0.002]
[1768301504244,0.70528085,3133.1,3132.6,0.251]
[1768301504479,3.89709116,3133.1,3132.6,0.251]
[1768301507484,3.19181031,3133.1,3132.6,0.251]
[1768301508662,3.19181031,3133.1,3132.6,1.18318235]
[1768301509187,8.08506091,3133.2,3132.6,1.18318235]
[1768301511489,3.19155964,3133.3,3132.7,0.93218235]
[1768301511784,3.19155964,3133.3,3132.9,0.002]
[1768301513862,3.19145328,3133.4,3132.9,0.93418235]
[1768301514389,6.38265672,3133.5,3132.9,0.93418235]
[1768301514592,4.89338821,3133.4,3132.9,0.93418235]
[1768301515789,4.89338821,3133.2,3132.9,0.002]
[1768301516699,8.08509791,3133.2,3132.9,0.002]
[1768301522575,11.27680761,3133.2,3132.9,0.002]
[1768301522772,5.59866906,3133.0,3132.5,0.002]
[1768301523004,4.89338821,3132.7,3132.5,0.253]
[1768301523296,4.89338821,3132.9,3132.5,0.253]
[1768301526071,4.89338821,3132.6,3132.0,0.92518993]
[1768301526273,4.89338821,3132.4,3132.1,0.251]
[1768301526475,4.89338821,3132.6,3131.9,4.1180732]
[1768301526770,4.89338821,3132.6,3132.0,0.251]
[1768301528077,8.08565916,3132.6,3132.0,1.17618993]
[1768301528274,4.89338821,3132.2,3131.8,0.92518993]
[1768301528477,4.89338821,3132.2,3131.8,1.17618993]
[1768301529371,4.89338821,3132.4,3131.8,1.17618993]
[1768301531112,3.19254222,3132.3,3131.8,1.17618993]
[1768301532376,3.19254222,3132.3,3131.9,0.92518993]
[1768301533315,3.19249075,3132.4,3131.9,0.92518993]
[1768301533524,3.8977716,3132.4,3131.8,0.251]
[1768301533823,3.19249075,3132.4,3131.8,0.251]
[1768301534417,3.19249075,3132.4,3131.8,1.17618993]
[1768301534617,3.19249075,3132.4,3131.9,0.92518993]
[1768301535489,3.19234356,3132.5,3132.1,0.002]
[1768301535688,4.02676861,3132.5,3132.1,0.002]
[1768301535892,7.21911217,3132.5,3132.1,0.002]
[1768301540447,7.21911217,3132.5,3131.5,0.08911096]
[1768301540448,4.8956471,3132.2,3131.7,0.91508379]
[1768301540731,4.8956471,3131.9,3131.3,0.91708379]
[1768301541028,4.8956471,3131.9,3131.3,0.002]
[1768301541208,4.8956471,3131.9,3131.4,0.251]
[1768301542328,8.08866778,3131.9,3131.4,0.251]
[1768301544334,3.19302068,3131.9,3131.4,0.251]
[1768301546336,6.38569648,3132.0,3131.4,0.251]
[1768301547236,6.38569648,3132.0,3131.7,0.002]
[1768301548132,7.66060046,3132.0,3131.7,0.002]
[1768301548524,4.46775222,3132.0,3131.7,0.002]
[1768301548905,5.44588371,3132.0,3131.7,0.002]
[1768301550635,4.46775222,3132.0,3131.7,0.002]
[1768301553341,5.44588371,3132.0,3131.7,0.002]
[1768301554141,4.46775222,3132.0,3131.7,0.002]
[1768301555255,3.19284824,3132.0,3131.7,0.002]
[1768301557851,6.38569648,3132.0,3131.7,0.002]
[1768301560342,6.38549216,3132.1,3131.7,0.002]
[1768301562145,6.38528828,3132.2,3131.7,0.002]
[1768301562351,3.19264414,3132.2,3131.7,0.97132576]
[1768301562517,3.19264414,3132.2,3131.8,0.96932576]
[1768301564235,11.2805277,3132.4,3131.8,0.96932576]
[1768301567544,6.3848806,3132.4,3131.8,0.96932576]
[1768301571556,0.001,3132.1,3131.8,0.96932576]
[1768301580736,0.001,3132.1,3131.9,0.96932576]
[1768301582132,0.001,3132.1,3131.7,0.002]
[1768301582133,0.001,3132.1,3131.7,4.16443426]
[1768301582563,0.001,3132.1,3131.8,0.96932576]
[1768301583076,3.19238066,3132.5,3131.9,0.96932576]
[1768301585489,3.19238066,3132.5,3131.7,4.12326209]
[1768301586087,4.09265516,3132.5,3131.7,4.12326209]
[1768301586887,4.09265516,3132.5,3131.8,0.92816215]
[1768301588897,3.19238066,3132.5,3131.8,0.92816215]
[1768301590492,4.09256022,3132.6,3131.9,0.92816215]
[1768301591088,0.9002745,3132.8,3131.9,0.92816215]
[1768301591381,0.9002745,3132.7,3131.9,0.92816215]
[1768301592682,3.19223648,3132.6,3131.9,0.92816215]
[1768301593586,4.09251098,3132.6,3131.9,0.92816215]
[1768301593905,7.28474746,3132.6,3131.9,0.92816215]
[1768301594602,3.19223648,3132.6,3131.9,0.92816215]
[1768301595410,8.08774402,3132.6,3132.1,0.002]
[1768301595609,0.001,3132.4,3132.1,0.002]
[1768301601489,4.89650754,3132.4,3132.1,0.002]
[1768301603313,8.08896229,3132.4,3132.1,0.002]
[1768301604194,11.28141704,3132.4,3132.1,0.002]
[1768301604507,8.08896229,3132.4,3132.1,0.002]
[1768301605215,11.28141704,3132.4,3132.1,0.002]
[1768301606113,11.28141704,3132.4,3131.7,0.93838064]
[1768301606114,5.84255968,3132.2,3131.7,0.002]
[1768301606415,5.84255968,3132.1,3131.7,0.002]
[1768301606781,0.94705214,3132.0,3131.7,0.002]
[1768301607609,3.19294996,3131.9,3131.7,0.002]
[1768301609582,3.19290075,3132.0,3131.7,0.002]
[1768301618896,3.19377291,3132.1,3131.7,0.002]
[1768301619100,8.08928045,3132.1,3131.7,0.002]
[1768301620034,3.19377291,3132.1,3131.7,0.002]
[1768301623224,0.001,3132.1,3131.7,0.002]
[1768301629527,0.001,3132.1,3131.7,0.9910931]
[1768301632803,0.001,3131.8,3131.7,0.9910931]
[1768301636040,0.001,3131.8,3131.7,0.002]
[1768301642642,0.001,3132.1,3131.7,0.002]
[1768301643339,0.001,3132.1,3131.7,0.9910931]
[1768301645745,0.001,3131.8,3131.7,0.9910931]
[1768301645907,0.001,3132.1,3131.7,0.9910931]
[1768301649354,0.001,3132.1,3131.8,0.03193051]
[1768301650165,0.001,3132.1,3131.7,4.18418901]
[1768301650642,0.001,3132.1,3131.8,3.19304408]
[1768301651247,0.001,3132.1,3131.8,4.14444636]
[1768301651917,0.001,3132.1,3131.9,0.03192949]
[1768301653848,0.001,3132.1,3131.8,0.95140228]
[1768301656636,0.001,3132.1,3131.9,0.03192949]
[1768301656837,0.001,3132.1,3131.8,0.95140228]
[1768301657034,0.001,3132.1,3131.7,0.002]
[1768301657350,0.001,3131.8,3131.7,0.002]
[1768301657550,0.001,3132.1,3131.7,0.002]
[1768301657753,4.42768047,3132.4,3131.7,0.002]
[1768301657754,4.10908047,3132.4,3131.7,0.002]
[1768301659056,0.98321996,3132.3,3131.7,0.253]
[1768301659746,0.98321996,3132.3,3131.7,0.002]
[1768301659747,0.98321996,3132.2,3131.7,0.002]
[1768301659947,0.98321996,3132.1,3131.7,0.002]
[1768301662756,4.17606798,3132.0,3131.7,0.002]
[1768301665563,7.368916,3132.0,3131.7,0.002]
[1768301672377,6.38569604,3132.0,3131.7,0.002]
[1768301673667,6.38549216,3132.1,3131.7,0.002]
[1768301680786,3.19274608,3132.1,3132.0,0.002]
[1768301680952,3.98839468,3132.1,3131.7,0.002]
[1768301681150,6.38549216,3132.1,3131.7,1e-08]
[1768301692401,3.19274608,3132.1,3132.0,0.002]
[1768301692575,6.38549216,3132.1,3131.7,1e-08]
[1768301697995,0.99448385,3132.0,3131.7,1e-08]
[1768301698881,6.38589992,3131.9,3131.7,1e-08]
[1768301699068,7.61348471,3131.9,3131.7,1e-08]
[1768301699270,0.99448385,3131.8,3131.7,1e-08]
[1768301700160,7.61348471,3131.9,3131.7,1e-08]
[1768301700161,4.42053475,3131.9,3131.7,1e-08]
[1768301700798,3.19294996,3131.9,3131.7,1e-08]
[1768301700966,6.38559824,3132.1,3131.7,1e-08]
[1768301704081,3.19278359,3132.1,3132.0,0.002]
[1768301704282,6.38559824,3132.1,3131.7,1e-08]
[1768301715733,3.19278359,3132.1,3132.0,0.002]
[1768301715878,6.38559824,3132.1,3131.7,1e-08]
[1768301716242,7.6970397,3132.1,3131.7,1e-08]
[1768301717308,12.59455372,3132.1,3131.7,1e-08]
[1768301722310,4.50422505,3132.1,3131.7,1e-08]
[1768301722514,3.19278359,3132.1,3131.7,0.93133003]
[1768301726031,6.38559824,3132.1,3131.7,0.93133003]
[1768301727815,3.19278359,3132.1,3132.0,0.002]
[1768301728111,7.53899311,3132.1,3131.7,0.93133003]
[1768301728314,6.38559824,3132.1,3131.7,0.92933003]
[1768301730117,3.19278359,3132.1,3131.7,0.92933003]
[1768301733317,3.19267289,3132.2,3131.7,0.92933003]
[1768301735589,3.19254222,3132.3,3131.7,0.92933003]
[1768301737714,3.1924403,3132.4,3131.7,0.92933003]
[1768301737895,3.1924403,3132.4,3131.7,1.18033003]
[1768301738221,6.3848806,3132.4,3131.7,1.18033003]
[1768301738925,11.28239462,3132.4,3131.8,0.90781284]
[1768301739125,4.89751402,3132.2,3131.8,0.90781284]
[1768301739318,11.28239462,3132.4,3131.8,0.90781284]
[1768301739617,0.001,3132.1,3131.8,0.90781284]
[1768301745348,0.001,3132.1,3131.9,0.90781284]
[1768301760063,0.91978521,3132.8,3131.9,3.19293552]
[1768301760267,0.91978521,3132.7,3131.9,3.19293552]
[1768301760432,0.91978521,3132.6,3131.9,4.10074836]
[1768301760636,0.91978521,3132.6,3131.9,3.19293552]
[1768301761259,3.19220663,3132.7,3132.0,0.90781284]
[1768301762184,6.38441326,3132.7,3132.0,0.90781284]
[1768301762355,4.89751402,3132.6,3132.0,0.90781284]
[1768301762967,0.001,3132.3,3132.0,0.90781284]
[1768301765171,0.001,3132.3,3132.0,4.10065168]
[1768301765371,0.001,3132.3,3132.0,0.90781284]
[1768301769282,3.19218967,3132.7,3132.2,0.96497548]
[1768301769496,0.90795272,3132.6,3132.0,3.19282557]
[1768301771391,0.90795272,3132.6,3131.9,3.19294996]
[1768301771540,3.19218967,3132.7,3132.0,0.96497548]
[1768301774984,0.001,3132.4,3132.0,0.96497548]
[1768301775355,0.001,3132.4,3132.1,0.98514101]
[1768301775756,0.90569447,3133.0,3132.2,8.34115816]
[1768301775960,0.90469447,3132.9,3132.2,8.34115816]
[1768301776363,0.90469447,3132.9,3132.2,3.44364414]
[1768301779292,3.19195132,3132.9,3132.3,0.98514101]
[1768301781092,3.19288113,3133.0,3132.3,4.17767039]
[1768301782497,4.89424268,3132.4,3131.7,0.98514101]
[1768301782701,0.90469447,3132.5,3132.0,0.251]
[1768301783191,3.1924403,3132.4,3132.0,0.251]
[1768301786678,3.1924403,3132.4,3132.3,0.002]
[1768301789774,6.38554392,3132.6,3132.3,0.002]
[1768301791108,3.19327196,3132.6,3132.3,0.002]
[1768301792408,3.92228354,3132.6,3132.3,0.002]
[1768301795479,0.73001158,3132.6,3132.3,0.002]
[1768301795701,0.001,3132.6,3132.3,0.002]
[1768301796198,3.1932377,3132.6,3132.3,0.002]
[1768301796579,0.001,3132.6,3132.3,0.002]
[1768301802019,0.95500918,3132.6,3132.3,0.002]
[1768301803214,3.19233838,3132.5,3132.3,0.002]
[1768301805210,4.14728757,3132.6,3132.3,0.002]
[1768301805211,0.001,3132.6,3132.3,0.002]
[1768301809111,2.17836759,3132.6,3132.3,0.002]
[1768301809827,3.19233838,3132.5,3132.3,0.002]
[1768301810217,4.41664339,3132.6,3132.3,0.002]
[1768301810425,3.19328498,3132.6,3132.3,0.002]
[1768301810601,0.001,3132.6,3132.3,0.002]
[1768301821933,0.001,3132.6,3132.3,0.97852697]
[1768301822116,0.001,3132.6,3132.4,0.97652697]
[1768301822704,0.001,3132.6,3132.5,0.97652697]
[1768301823741,0.001,3133.0,3132.6,0.97652697]
[1768301823895,0.001,3133.0,3132.4,3.19243619]
[1768301824226,0.95500918,3133.0,3132.4,3.19243619]
[1768301824427,0.001,3133.0,3132.5,0.97652697]
[1768301824624,0.001,3133.0,3132.4,3.19243619]
[1768301824808,0.94570321,3133.0,3132.4,3.19243619]
[1768301825007,0.001,3133.0,3132.4,3.19243619]
[1768301826126,0.001,3133.0,3132.4,6.38487649]
[1768301826593,0.001,3133.0,3132.5,0.99446428]
[1768301826794,0.001,3133.0,3132.6,4.18670076]
[1768301827333,0.001,3133.0,3132.6,0.99446428]
[1768301831240,0.001,3133.0,3132.4,0.99446428]
[1768301831434,0.001,3133.0,3132.4,1.24546428]
[1768301831624,0.001,3133.0,3132.4,0.99446428]
[1768301832437,0.001,3133.0,3132.4,4.18689791]
[1768301832841,0.001,3133.0,3132.4,0.99446428]
[1768301833347,0.001,3133.0,3132.4,4.18688401]
[1768301833748,0.001,3132.7,3132.4,4.18688401]
[1768301836038,0.001,3132.7,3132.4,0.99446428]
[1768301847368,0.001,3132.7,3132.3,0.002]
[1768301847572,0.93639867,3132.7,3132.3,0.002]
[1768301847780,0.93639867,3132.7,3132.0,0.09111096]
[1768301847971,0.001,3132.7,3132.1,0.99034961]
[1768301848168,4.89395225,3132.4,3132.0,0.002]
[1768301848552,4.89395225,3132.2,3132.0,0.002]
[1768301849042,5.82935092,3132.2,3132.0,0.002]
[1768301850360,3.19274608,3132.1,3132.0,0.002]
[1768301850613,4.12807335,3132.2,3132.0,0.002]
[1768301850876,3.19267468,3132.2,3132.0,0.002]
[1768301852483,3.19257754,3132.3,3132.0,0.002]
[1768301853483,4.41401536,3132.3,3132.0,0.002]
[1768301855182,7.6065929,3132.3,3132.0,0.002]
[1768301855386,8.58257582,3132.3,3132.0,0.002]
[1768301861908,5.38999828,3132.3,3132.0,0.002]
[1768301862122,4.41401536,3132.3,3132.0,0.002]
[1768301864917,6.38497563,3132.4,3132.0,0.002]
[1768301865098,0.97598292,3132.3,3132.0,0.002]
[1768301865646,6.38497563,3132.4,3132.0,0.002]
[1768301866098,7.36095855,3132.4,3132.0,0.002]
[1768301866489,0.97598292,3132.3,3132.0,0.002]
[1768301867223,3.19264414,3132.2,3132.0,0.002]
[1768301867723,7.3612712,3132.2,3132.0,0.002]
[1768301867927,12.25522345,3132.2,3132.0,0.002]
[1768301868121,0.97598292,3132.1,3132.0,0.002]
[1768301868502,0.97598292,3132.1,3132.0,0.00063912]
[1768301869938,4.169729,3132.1,3132.0,0.00063912]
[1768301871532,5.51791065,3132.1,3132.0,0.00063912]
[1768301872333,4.169729,3132.1,3132.0,0.00063912]
[1768301875532,3.19374608,3132.1,3132.0,0.00063912]
[1768301880415,3.49198748,3132.1,3131.6,0.002]
[1768301880738,3.49113016,3132.0,3131.6,0.002]
[1768301880932,0.2982414,3131.9,3131.6,0.002]
[1768301881139,3.19288876,3132.0,3131.6,0.002]
[1768301881336,0.29824121,3131.9,3131.6,0.002]
[1768301881541,3.19288876,3132.0,3131.6,0.90724347]
[1768301881720,0.29823331,3131.9,3131.6,0.90724347]
[1768301881922,3.19378879,3132.1,3131.6,0.90724347]
[1768301882123,0.29824342,3132.0,3131.6,0.90724347]
[1768301882334,0.29824342,3131.9,3131.6,0.90724347]
[1768301882525,3.19378879,3132.1,3131.6,0.90724347]
[1768301882828,0.29828392,3132.0,3131.6,0.90724347]
[1768301883038,0.29828392,3131.9,3131.6,0.99635443]
[1768301883334,0.001,3132.1,3131.8,0.90524347]
[1768301884940,0.001,3132.1,3131.6,3.28436302]
[1768301885144,0.001,3132.1,3131.8,1.0443453]
[1768301885342,0.001,3132.1,3131.9,0.95523434]
[1768301886165,0.001,3132.1,3131.8,0.08911096]
[1768301887157,0.001,3132.1,3131.8,4.23738063]
[1768301887731,0.001,3132.1,3131.8,1.0443453]
[1768301888249,0.001,3132.1,3131.9,0.95523434]
[1768301889049,0.001,3132.1,3132.0,0.95523434]
[1768301891142,3.19323234,3132.7,3132.1,0.95523434]
[1768301892350,0.001,3132.7,3132.1,0.95523434]
[1768301893266,0.001,3132.7,3132.2,1.0443453]
[1768301893427,0.001,3132.7,3132.5,0.95523434]
[1768301899555,0.001,3132.7,3132.4,1.0694784]
[1768301900963,0.001,3132.7,3132.5,0.98036744]
[1768301901942,0.001,3132.7,3132.6,0.08911096]
[1768301902142,0.001,3132.7,3132.6,1.0694784]
[1768301904433,0.001,3133.0,3132.7,0.98036744]
[1768301906933,0.001,3133.0,3132.8,0.08911096]
[1768301907269,0.001,3133.0,3132.8,1.0694784]
[1768301909576,0.001,3133.0,3132.8,0.08911096]
[1768301911363,0.9410972,3133.0,3132.8,0.08911096]
[1768301911566,0.9410972,3133.0,3132.6,0.251]
[1768301911739,0.9410972,3133.0,3132.4,3.28150191]
[1768301911945,0.9410972,3133.0,3132.3,0.08911096]
[1768301912176,0.9400972,3132.8,3132.3,0.34011096]
[1768301912375,0.9400972,3132.8,3132.3,0.08911096]
[1768301914163,0.9400972,3132.8,3132.3,3.28165066]
[1768301917670,0.001,3132.5,3132.3,3.28165066]
[1768301917865,0.9400972,3132.8,3132.3,3.28165066]
[1768301919196,0.001,3133.0,3132.5,0.08911096]
[1768301921091,0.001,3133.0,3132.5,3.28138134]